bitfinex/quotes_ETHUSD_20220218
["timestamp","ask_amount","ask_price","bid_price","bid_amount"]
[1645206986481,0.1794,2787.6,2786.5,0.65525553]
[1645206986881,0.89749,2787.8,2786.5,0.65525553]
[1645206987182,0.0023983,2787.2,2787.0,0.57907244]
[1645206989537,0.0047966,2787.2,2787.0,0.57907244]
[1645206989740,0.0023983,2787.2,2787.0,0.57907244]
[1645206990739,0.0023949,2787.2,2787.0,0.57907244]
[1645206993085,0.0047898,2787.2,2787.0,0.57907244]
[1645206993286,0.0023949,2787.2,2787.0,0.57907244]
[1645206994287,0.00239543,2787.2,2787.0,0.57907244]
[1645206995639,0.00239543,2787.2,2787.1,0.417]
[1645206996037,0.02238831,2787.3,2787.2,2.99760457]
[1645206996535,0.1792,2788.2,2787.9,0.58143084]
[1645206996735,1.97387,2788.2,2787.2,2.99760457]
[1645206996938,0.89733,2788.2,2787.2,2.99760457]
[1645206998038,0.00239707,2787.8,2787.2,2.99760457]
[1645206998237,0.89749,2787.7,2787.6,0.50457363]
[1645207000980,0.89749,2787.7,2787.2,2.99760457]
[1645207001183,0.89754,2787.6,2787.4,0.02270729]
[1645207001982,0.89749,2787.7,2787.4,0.02270729]
[1645207002635,0.89749,2787.7,2787.6,4.0]
[1645207002931,0.89988497,2787.7,2787.6,4.0]
[1645207003131,0.78378909,2787.7,2787.6,4.0]
[1645207004129,0.89986496,2787.8,2787.6,4.0]
[1645207004430,0.00239496,2787.8,2787.6,4.0]
[1645207005335,0.00239513,2787.8,2787.6,4.0]
[1645207005730,0.89983513,2787.8,2787.6,4.0]
[1645207005930,0.00239513,2787.8,2787.6,4.0]
[1645207006391,0.00479026,2787.8,2787.6,4.0]
[1645207006585,0.1793,2788.2,2787.6,4.0]
[1645207006985,1.79495,2788.1,2788.0,0.51137967]
[1645207007591,2.69233,2788.1,2788.0,0.51137967]
[1645207008389,1.07671,2788.2,2788.0,0.51137967]
[1645207008590,1.07645,2788.5,2788.0,0.51137967]
[1645207008790,0.00239686,2788.2,2788.0,6.87027967]
[1645207010041,0.00239685,2788.2,2788.0,6.87027967]
[1645207011141,0.0047937,2788.2,2788.0,6.87027967]
[1645207011342,0.00239685,2788.2,2788.0,6.87027967]
[1645207012146,9.685e-05,2788.2,2788.0,6.87027967]
[1645207012445,0.00239473,2788.2,2788.1,0.417]
[1645207012842,9.473e-05,2788.2,2788.1,3.917]
[1645207013043,9.473e-05,2788.2,2788.1,4.0962]
[1645207013442,9.473e-05,2788.2,2788.1,4.75910992]
[1645207013643,0.13046724,2789.1,2788.1,6.05910992]
[1645207013884,0.13046724,2789.1,2788.3,1.7935868]
[1645207014085,1.33698173,2789.8,2788.5,5.0]
[1645207014285,0.1792,2789.9,2788.6,0.417]
[1645207014286,1.79367,2789.9,2788.6,0.417]
[1645207014487,0.89683,2789.9,2788.6,0.417]
[1645207014686,0.89683,2789.9,2788.7,0.70796845]
[1645207014889,0.89683,2789.9,2788.7,1.12496845]
[1645207015491,3.13071173,2790.0,2788.8,0.1792]
[1645207015492,0.00557629,2790.0,2788.8,0.1792]
[1645207015688,0.00557629,2790.0,2789.1,1.7931723]
[1645207015890,0.00557629,2790.0,2789.2,0.5962]
[1645207016087,1.33698173,2790.3,2789.2,0.5962]
[1645207016088,0.0026079,2789.4,2789.2,0.5962]
[1645207016286,0.0026079,2789.4,2789.2,0.417]
[1645207016486,0.0026079,2789.4,2789.3,0.68293694]
[1645207016789,0.0026079,2789.4,2789.3,1.09993694]
[1645207017286,0.00254108,2789.5,2789.3,1.09993694]
[1645207018446,0.00254107,2789.5,2789.3,1.09993694]
[1645207018845,0.00254107,2789.5,2789.3,0.68293694]
[1645207019047,0.00254107,2789.5,2789.3,0.54971031]
[1645207020047,0.89951107,2789.5,2789.3,0.54971031]
[1645207020247,0.89951107,2789.5,2788.4,1.14621544]
[1645207020445,0.89951107,2789.5,2788.4,0.00221544]
[1645207020446,12.90335,2789.4,2788.4,0.00221544]
[1645207020648,0.02243617,2789.3,2788.4,0.00221544]
[1645207020847,1.02243617,2789.3,2788.4,0.00221544]
[1645207021049,0.1792,2789.2,2788.4,0.00221544]
[1645207021289,0.20163617,2789.3,2788.5,0.66097112]
[1645207021495,0.02243617,2789.3,2789.2,0.64742805]
[1645207025539,0.00239855,2789.4,2789.2,0.64742805]
[1645207025735,0.00239679,2789.4,2789.2,0.64742805]
[1645207026938,0.00239678,2789.4,2789.2,0.64742805]
[1645207028041,0.00479073,2789.4,2789.2,0.64742805]
[1645207028239,0.00239395,2789.4,2789.2,0.64742805]
[1645207028538,0.00239395,2789.4,2789.2,1.06442805]
[1645207029190,0.00239395,2789.4,2789.2,2.85767555]
[1645207029385,0.00239395,2789.4,2789.2,1.06442805]
[1645207029386,0.00239424,2789.4,2789.2,1.06442805]
[1645207029585,0.00239424,2789.4,2789.2,0.64742805]
[1645207030087,0.00239424,2789.4,2789.3,0.02545377]
[1645207030487,0.00478848,2789.4,2789.3,0.02545377]
[1645207030686,0.00239424,2789.4,2789.3,0.02545377]
[1645207031787,0.00239445,2789.5,2789.3,0.02545377]
[1645207032839,0.00478885,2789.5,2789.3,0.02545377]
[1645207033039,0.0023944,2789.5,2789.3,0.02545377]
[1645207033944,0.0023944,2789.5,2788.6,1.2358]
[1645207034146,0.0023944,2789.5,2788.5,0.1792]
[1645207034147,0.12855085,2788.9,2788.5,0.1792]
[1645207034341,0.12855085,2788.9,2788.4,0.00221544]
[1645207034740,0.12855085,2788.9,2788.0,6.3589]
[1645207034942,0.12855085,2788.9,2788.3,0.59847525]
[1645207034943,10.93,2788.7,2788.3,0.59847525]
[1645207035341,0.89738,2788.6,2788.3,0.59847525]
[1645207036044,15.41698,2788.6,2788.3,0.59847525]
[1645207036282,0.89731,2788.5,2788.3,0.59847525]
[1645207036684,11.82731,2788.5,2788.0,6.3589]
[1645207036884,12.72476,2788.5,2788.0,6.3589]
[1645207037683,0.89747,2788.3,2788.0,6.3589]
[1645207037885,1.79492,2788.3,2788.1,0.7039279]
[1645207038885,1.79731455,2788.3,2788.1,0.7039279]
[1645207039483,1.79731455,2788.3,2788.0,6.3589]
[1645207039684,1.19741,2788.2,2788.0,6.3589]
[1645207039886,0.89741,2788.2,2788.0,6.3589]
[1645207040155,1.19741,2788.2,2788.0,6.3589]
[1645207040355,0.1792,2788.1,2788.0,6.3589]
[1645207040656,1.97418,2788.1,2788.0,6.3589]
[1645207040855,12.90418,2788.1,2788.0,6.3589]
[1645207041258,0.1792,2788.1,2788.0,6.3589]
[1645207041556,11.1092,2788.1,2788.0,6.3589]
[1645207041758,11.4092,2788.1,2788.0,6.3589]
[1645207041959,12.4092,2788.1,2788.0,6.3589]
[1645207042155,12.4092,2788.1,2788.0,0.44250149]
[1645207042357,12.4092,2788.1,2788.0,0.09917203]
[1645207042557,12.8262,2788.1,2788.0,0.09917203]
[1645207043984,14.16318173,2788.1,2788.0,0.05383286]
[1645207044185,14.38128612,2788.1,2788.0,0.05383286]
[1645207044589,6.14433612,2788.1,2788.0,0.05383286]
[1645207044786,1.1792,2788.1,2788.0,0.05383286]
[1645207044985,1.0,2788.1,2788.0,0.05383286]
[1645207045186,0.3,2788.2,2788.0,0.05383286]
[1645207045187,1.3,2788.2,2788.0,0.05383286]
[1645207045385,0.3,2788.2,2788.0,0.07595106]
[1645207045586,1.00239785,2788.3,2788.0,0.07595106]
[1645207045791,1.00239785,2788.3,2788.0,0.61608096]
[1645207045988,0.00239785,2788.3,2788.0,0.61608096]
[1645207046190,0.00239711,2788.3,2788.0,0.61608096]
[1645207046589,1.79493,2788.2,2788.0,0.61608096]
[1645207047291,2.09493,2788.2,2788.0,0.61608096]
[1645207047751,12.72493,2788.2,2788.0,0.07595106]
[1645207047952,14.51984,2788.2,2788.0,0.07595106]
[1645207048250,3.58984,2788.2,2788.0,0.07595106]
[1645207048851,0.89746,2788.1,2788.0,0.07595106]
[1645207049052,0.89746,2788.1,2787.9,0.5184467]
[1645207049251,1.79489,2788.1,2787.9,0.5184467]
[1645207052489,12.72489,2788.1,2787.9,0.5184467]
[1645207052887,12.72489,2788.1,2787.6,4.0]
[1645207053087,0.89764,2787.8,2787.6,4.0]
[1645207053288,12.82764,2787.8,2787.6,4.0]
[1645207053486,10.82764,2787.8,2787.6,4.0]
[1645207054288,12.62295,2787.8,2787.6,4.0]
[1645207054889,13.52059,2787.8,2787.6,4.0]
[1645207058896,3.69295,2787.8,2787.6,4.0]
[1645207059097,0.89764,2787.8,2787.6,4.0]
[1645207059300,0.02796538,2788.0,2787.6,4.0]
[1645207060094,0.00239422,2788.3,2788.0,0.54799693]
[1645207060298,1.79476,2788.2,2788.0,0.54799693]
[1645207060499,1.79476,2788.2,2787.7,0.02075296]
[1645207061897,1.79476,2788.2,2787.8,0.59798065]
[1645207063139,2.69480445,2788.3,2787.8,0.59798065]
[1645207063140,0.00239445,2788.3,2787.8,0.59798065]
[1645207064239,0.00239447,2788.3,2787.8,0.59798065]
[1645207065242,0.00239447,2788.3,2787.9,0.02070607]
[1645207066593,0.00239451,2788.3,2787.9,0.02070607]
[1645207068491,0.00239451,2788.3,2787.9,0.01690277]
[1645207068894,10.93,2788.2,2787.9,0.01690277]
[1645207069091,0.89975451,2788.3,2787.9,0.01690277]
[1645207069291,1.79495,2788.2,2787.9,0.01690277]
[1645207069493,0.89975451,2788.3,2787.9,0.01690277]
[1645207070034,0.89975451,2788.3,2787.8,0.61861532]
[1645207070233,0.00239447,2788.3,2787.8,0.61861532]
[1645207072135,0.00239447,2788.3,2787.8,0.02063467]
[1645207072335,10.93,2788.1,2787.8,0.02063467]
[1645207072735,11.82755,2788.1,2787.8,0.02063467]
[1645207073801,0.89755,2788.1,2787.8,0.02063467]
[1645207073986,1.79509,2788.1,2787.8,0.02063467]
[1645207074185,1.89755,2788.1,2787.8,0.02063467]
[1645207074386,0.89755,2788.1,2787.8,0.02063467]
[1645207074788,0.3,2788.0,2787.8,0.02063467]
[1645207075790,0.3,2788.0,2787.6,4.02052537]
[1645207077391,1.33937609,2788.3,2787.6,4.02052537]
[1645207077638,1.63937602,2788.3,2788.0,0.70139831]
[1645207077838,1.33937602,2788.3,2788.0,0.70139831]
[1645207078040,0.00239429,2788.3,2788.0,0.70139831]
[1645207078839,1.33698173,2788.1,2788.0,0.70139831]
[1645207079038,1.33937602,2788.3,2788.0,0.70139831]
[1645207079243,1.33937628,2788.3,2788.0,0.70139831]
[1645207080241,1.3393762,2788.3,2788.0,0.70139831]
[1645207081286,1.33937628,2788.3,2788.0,0.70139831]
[1645207081586,1.33698173,2788.1,2787.6,4.0]
[1645207081785,1.33698173,2788.0,2787.6,4.0]
[1645207081985,1.33698173,2787.9,2787.6,4.0]
[1645207082785,0.89756,2787.8,2787.6,4.0]
[1645207084387,2.23454173,2787.8,2787.6,4.0]
[1645207085052,2.23454173,2787.8,2787.6,3.26981295]
[1645207085053,16.22531,2787.7,2787.6,3.26981295]
[1645207085253,18.1887428,2787.7,2787.6,3.26981295]
[1645207085555,17.40451,2787.7,2787.6,3.26981295]
[1645207086155,17.60939741,2787.7,2787.6,3.26981295]
[1645207086456,17.90939741,2787.7,2787.6,3.26981295]
[1645207086652,18.20939741,2787.7,2787.6,3.26981295]
[1645207086856,18.20939741,2787.7,2787.6,3.1216115]
[1645207087653,20.00337865,2787.7,2787.6,3.1216115]
[1645207088054,18.20939741,2787.7,2787.6,3.1216115]
[1645207088456,18.20939741,2787.7,2787.1,0.00456129]
[1645207088655,12.27503767,2787.2,2787.1,0.00912258]
[1645207088889,14.17287767,2787.2,2787.1,0.00456129]
[1645207089287,12.82784,2787.2,2787.1,0.00456129]
[1645207089888,12.82784,2787.2,2786.9,0.00114039]
[1645207090088,10.93,2787.0,2786.9,0.00114039]
[1645207090290,12.72576,2787.0,2786.9,0.00114039]
[1645207090987,14.52166,2787.0,2786.8,0.00114044]
[1645207092087,14.52166,2787.0,2786.8,0.0022809]
[1645207092288,14.52166,2787.0,2786.8,0.00114046]
[1645207092740,1.0,2786.9,2786.8,0.00114046]
[1645207093340,1.0,2786.9,2786.8,0.00106271]
[1645207094148,11.93,2786.9,2786.8,0.00106271]
[1645207094343,16.80727,2786.9,2786.8,0.00106271]
[1645207094647,16.80727,2786.9,2786.7,0.00106273]
[1645207094648,15.9094,2786.9,2786.7,0.00106273]
[1645207094845,14.06842993,2786.8,2786.7,0.00106273]
[1645207095044,19.42635993,2786.8,2786.7,0.00106273]
[1645207095242,10.93,2786.4,2786.3,0.00425154]
[1645207095446,15.32819,2786.4,2786.3,0.00425154]
[1645207095642,16.80759,2786.4,2786.3,0.00425154]
[1645207096043,15.9094,2786.4,2786.2,0.00425169]
[1645207096295,11.93,2786.3,2786.2,0.00425169]
[1645207097090,11.93,2786.3,2786.2,0.00115202]
[1645207097291,12.82816,2786.3,2786.2,0.00115202]
[1645207097692,13.12816,2786.3,2786.2,0.00115202]
[1645207097892,16.50756,2786.3,2786.2,0.00115202]
[1645207098191,16.32816,2786.3,2786.2,0.00115202]
[1645207098391,16.32816,2786.3,2786.1,0.00115204]
[1645207098392,10.93,2786.2,2786.1,0.00115204]
[1645207098692,14.43,2786.2,2786.1,0.00115204]
[1645207098893,15.43,2786.2,2785.7,0.00115204]
[1645207099091,10.93,2786.0,2785.7,0.00115204]
[1645207099491,10.93,2786.0,2785.6,0.00460902]
[1645207099692,11.82819,2785.9,2785.6,0.00460902]
[1645207100637,11.82819,2785.8,2785.6,0.00113658]
[1645207100836,0.89819,2785.9,2785.6,0.50113658]
[1645207101036,10.93,2786.4,2785.6,0.50113658]
[1645207101037,0.1794,2786.5,2785.6,0.50113658]
[1645207101237,0.9327,2786.8,2785.6,0.00113658]
[1645207101839,0.89792,2786.6,2785.9,0.51884494]
[1645207102038,0.89792,2786.6,2785.6,0.00113658]
[1645207102235,10.93,2786.5,2785.6,0.00113658]
[1645207102437,14.43,2786.5,2785.6,0.00113658]
[1645207102636,10.93,2786.3,2785.6,0.00113658]
[1645207102835,11.93,2786.2,2785.6,0.00113658]
[1645207103536,0.1794,2786.4,2785.6,0.89912658]
[1645207103793,0.1794,2786.6,2785.6,0.89912658]
[1645207104184,0.1794,2786.6,2785.6,0.00113658]
[1645207104185,0.89802,2786.3,2785.6,0.00113658]
[1645207104388,1.79615,2786.3,2785.6,0.00112745]
[1645207104585,0.89813,2786.3,2785.6,0.00112745]
[1645207105385,0.89813,2786.3,2785.6,0.0022549]
[1645207105585,0.89813,2786.1,2785.6,0.00112745]
[1645207105788,0.89813,2786.1,2785.8,0.02324625]
[1645207107191,0.1794,2786.3,2785.8,0.02324625]
[1645207107391,0.89796,2786.5,2785.8,0.02324625]
[1645207107392,0.1794,2786.5,2785.8,0.02324625]
[1645207107638,0.1794,2786.7,2785.8,0.02324625]
[1645207108239,1.07739,2786.7,2785.8,0.02324625]
[1645207108641,1.07739,2786.7,2786.1,0.57014205]
[1645207108841,0.1794,2786.7,2786.1,0.57014205]
[1645207109041,1.1794,2786.7,2786.1,0.57014205]
[1645207109245,1.1794,2786.7,2785.8,0.92117625]
[1645207109443,11.1094,2786.7,2785.8,0.92117625]
[1645207109646,1.0773,2786.7,2785.8,0.02324625]
[1645207110346,0.0257002,2786.0,2785.7,0.8979221]
[1645207110544,0.0257002,2786.0,2785.9,0.64344904]
[1645207112494,0.0257002,2786.0,2785.6,0.30112854]
[1645207112898,0.0257002,2786.0,2785.6,0.00112854]
[1645207113498,0.0257002,2786.0,2785.6,0.62828948]
[1645207113696,0.0257002,2786.0,2785.6,0.00112854]
[1645207115055,10.93,2785.8,2785.6,0.00225711]
[1645207115251,10.93,2785.8,2785.6,0.00112857]
[1645207115252,14.43,2785.8,2785.6,0.00112857]
[1645207115451,10.93,2785.8,2785.6,0.00112857]
[1645207116453,1.97584,2785.9,2785.6,0.00112857]
[1645207116454,17.22658,2785.7,2785.6,0.00112857]
[1645207116654,13.90598,2785.7,2785.6,0.00032857]
[1645207117055,14.80432,2785.7,2785.6,0.00032857]
[1645207117256,15.10432,2785.7,2785.6,0.00032857]
[1645207117656,15.10432,2785.7,2784.8,0.00341719]
[1645207117858,0.1794,2785.6,2784.8,0.00341719]
[1645207118357,0.1794,2785.9,2784.8,0.00341719]
[1645207118557,1.0,2786.1,2784.8,0.90160719]
[1645207118558,0.1794,2786.0,2784.8,0.90160719]
[1645207118795,0.1794,2786.0,2785.1,0.00112878]
[1645207118997,0.1794,2786.1,2785.3,0.650347]
[1645207119394,0.1794,2786.2,2785.3,0.650347]
[1645207120106,0.1794,2786.2,2785.5,0.0011286]
[1645207120295,0.1794,2786.2,2785.7,0.02085982]
[1645207120296,0.89808,2786.1,2785.7,0.02085982]
[1645207120694,0.89808,2786.1,2785.3,1.52037382]
[1645207121093,0.89808,2786.1,2785.5,0.0011286]
[1645207122294,1.79626,2786.1,2785.4,0.00106353]
[1645207122745,0.89815,2785.9,2785.4,0.00106353]
[1645207124340,1.79639,2785.9,2785.4,0.00106353]
[1645207124753,14.32639,2785.9,2785.4,0.00106353]
[1645207124942,0.1794,2785.8,2785.4,0.00106353]
[1645207125343,15.93,2785.7,2785.4,0.00106353]
[1645207125543,10.93,2785.5,2785.4,0.00106353]
[1645207125742,11.78552459,2785.5,2785.4,0.00106353]
[1645207125942,13.08552459,2785.5,2785.4,0.0011333]
[1645207126142,15.78105459,2785.5,2785.4,0.0011333]
[1645207127283,15.78105459,2785.5,2785.3,0.00113333]
[1645207127284,11.82849,2785.4,2785.3,0.00113333]
[1645207127485,12.82849,2785.4,2785.3,0.00113333]
[1645207127686,12.82849,2785.4,2785.3,0.50113333]
[1645207127886,12.82849,2785.4,2785.3,0.00113333]
[1645207128283,12.82849,2785.4,2785.2,0.00113337]
[1645207129283,0.1794,2785.3,2785.2,0.00113337]
[1645207129483,11.1094,2785.3,2785.2,0.00113337]
[1645207129682,11.1094,2785.3,2785.2,0.00112317]
[1645207129886,14.20649,2785.3,2785.2,0.00112317]
[1645207130738,14.20649,2785.3,2785.1,0.00112319]
[1645207130940,12.82855,2785.2,2785.1,0.00112319]
[1645207131340,15.52445,2785.2,2785.1,0.00112319]
[1645207131538,15.52445,2785.2,2785.1,0.00032319]
[1645207131940,15.52445,2785.2,2785.0,0.00112323]
[1645207132139,11.82871,2785.1,2785.0,0.00112323]
[1645207132339,13.12871,2785.1,2785.0,0.00112323]
[1645207133146,14.92619,2785.1,2784.9,0.00112485]
[1645207133342,12.46715795,2785.0,2784.9,0.00112485]
[1645207133543,15.16336795,2785.0,2784.9,0.00112485]
[1645207134400,15.16336795,2785.0,2784.8,0.00112489]
[1645207134998,14.62621,2785.0,2784.8,0.00112489]
[1645207135198,3.69621,2785.0,2784.8,0.00112489]
[1645207135599,3.69621,2785.0,2784.8,0.0022498]
[1645207135802,3.69621,2785.0,2784.8,0.00112491]
[1645207136001,10.93,2784.9,2784.8,0.00112491]
[1645207136400,11.93,2784.9,2784.8,0.00112491]
[1645207136700,11.93,2784.9,2784.8,0.00112355]
[1645207138046,11.93,2784.9,2784.7,0.5]
[1645207138047,0.89871,2785.1,2784.7,0.50112357]
[1645207138850,2.23988153,2785.8,2784.7,0.50112357]
[1645207138851,0.6376772,2785.8,2784.7,0.50112357]
[1645207139047,15.80647097,2786.2,2784.7,0.80454076]
[1645207139048,1.34145153,2786.1,2784.7,0.80454076]
[1645207139247,2.8782,2786.2,2784.8,0.00454074]
[1645207139248,1.79645,2786.0,2784.8,0.00454074]
[1645207139447,1.34145153,2786.2,2784.8,1.80072074]
[1645207139847,12.27145153,2786.1,2784.8,1.80072074]
[1645207140051,10.93,2786.1,2784.8,1.80072074]
[1645207140249,12.27145153,2786.1,2785.1,0.00112258]
[1645207140448,1.34145153,2785.9,2785.1,0.00112258]
[1645207140649,1.34145153,2786.0,2785.1,0.6624153]
[1645207140848,1.34145153,2786.0,2785.2,0.00341719]
[1645207141325,1.34145153,2786.1,2785.2,0.00341719]
[1645207141631,1.34145153,2786.1,2785.2,0.90149809]
[1645207141824,1.34145153,2786.1,2785.3,0.00341719]
[1645207142030,0.1794,2786.3,2785.3,0.00341719]
[1645207142225,1.52085153,2786.6,2785.3,0.72041719]
[1645207142526,0.3051,2786.7,2786.0,0.53326556]
[1645207142725,0.3051,2786.7,2786.1,0.8977716]
[1645207142926,0.3051,2786.7,2786.0,0.53326556]
[1645207143127,0.3051,2786.7,2786.0,0.95026556]
[1645207143526,0.3051,2786.7,2786.1,3.5]
[1645207143728,0.3051,2786.7,2786.3,0.89753]
[1645207143928,0.3051,2786.7,2786.4,0.3]
[1645207144127,0.00239514,2786.9,2786.4,1.1975]
[1645207144526,0.00239514,2786.9,2786.5,0.61689108]
[1645207144728,0.00239514,2786.9,2786.5,1.33389108]
[1645207145151,0.00239536,2786.9,2786.6,3.5]
[1645207145351,0.00239536,2786.9,2786.7,0.417]
[1645207145352,9.536e-05,2786.9,2786.7,0.417]
[1645207145551,9.536e-05,2786.9,2786.8,5.0]
[1645207145749,1.34145153,2788.3,2786.9,6.0]
[1645207145950,1.34145153,2788.5,2787.0,5.417]
[1645207146148,0.1792,2788.9,2787.0,6.717]
[1645207146149,1.34145153,2788.6,2787.0,6.717]
[1645207146354,1.34145153,2788.5,2787.7,0.57494349]
[1645207146551,1.34145153,2788.4,2787.4,0.417]
[1645207146750,1.34145153,2788.5,2787.4,0.417]
[1645207146949,1.34145153,2788.5,2787.4,0.717]
[1645207147150,1.34145153,2788.4,2787.4,0.417]
[1645207147555,1.34145153,2788.4,2787.1,0.1793]
[1645207147556,1.34145153,2788.2,2787.1,0.1793]
[1645207147772,2.32975197,2788.5,2786.9,2.1646]
[1645207147773,1.34145153,2787.8,2786.9,2.1646]
[1645207147951,0.1792,2787.7,2786.9,2.1646]
[1645207148151,0.1792,2787.7,2786.6,1.70810186]
[1645207148352,0.1792,2787.7,2786.6,0.54400186]
[1645207148551,0.1792,2787.7,2786.8,0.69267677]
[1645207148801,0.1792,2787.7,2786.9,3.5]
[1645207148802,0.0024138,2787.4,2786.9,3.5]
[1645207149006,0.0024138,2787.4,2787.0,0.417]
[1645207149402,0.0024138,2787.4,2787.0,0.717]
[1645207149802,0.0024138,2787.4,2787.1,0.67134419]
[1645207150003,0.00241382,2787.3,2787.2,0.89722]
[1645207150205,0.00241382,2787.3,2787.2,0.417]
[1645207150403,0.00241382,2787.3,2787.2,0.92073133]
[1645207150701,0.00241382,2787.3,2787.2,1.22073133]
[1645207151302,4.84145153,2788.7,2787.3,0.8973602]
[1645207151303,0.00239292,2787.4,2787.3,0.8973602]
[1645207151505,0.00239292,2787.4,2787.3,1.6143602]
[1645207151704,0.00239292,2787.4,2787.3,1.9143602]
[1645207152405,0.00239291,2787.5,2787.3,1.9143602]
[1645207152845,0.00239291,2787.5,2787.3,1.6143602]
[1645207153245,0.00239291,2787.5,2787.3,1.3143602]
[1645207154149,0.00239291,2787.5,2787.3,1.6143602]
[1645207154748,0.00239539,2787.5,2787.3,1.6143602]
[1645207155149,0.00239539,2787.5,2787.4,0.3]
[1645207155350,9.539e-05,2787.5,2787.4,1.717]
[1645207155949,0.1792,2789.1,2787.8,0.8970421]
[1645207156150,0.1792,2789.1,2787.9,0.89697]
[1645207156151,0.00561031,2789.0,2787.9,0.89697]
[1645207156397,0.00561031,2789.0,2788.4,0.56126039]
[1645207156398,0.1792,2788.9,2788.4,0.56126039]
[1645207156596,0.1792,2788.9,2788.4,0.47436582]
[1645207156797,0.1792,2789.0,2788.0,0.89697]
[1645207156995,0.00561031,2788.9,2788.4,1.7939163]
[1645207157195,0.00561031,2789.2,2788.4,1.7939163]
[1645207157396,0.1792,2789.1,2788.4,1.7939163]
[1645207157595,0.00561031,2789.1,2788.4,1.7939163]
[1645207157796,0.18481031,2789.5,2788.6,0.8968]
[1645207157998,4.39682,2790.0,2788.6,1.1968]
[1645207157999,0.00561031,2789.1,2788.6,1.1968]
[1645207158198,0.00561031,2789.4,2788.7,0.417]
[1645207158396,0.00561031,2789.7,2788.7,0.417]
[1645207158600,0.00561031,2789.9,2789.2,0.57883421]
[1645207158797,0.00561031,2789.9,2789.2,0.8967864]
[1645207159096,0.89681,2790.0,2789.2,0.8967864]
[1645207159299,0.00561031,2789.9,2789.2,0.8967864]
[1645207159698,0.00260787,2789.7,2789.2,0.8967864]
[1645207159899,0.00260787,2789.7,2788.8,1.0596922]
[1645207160145,0.00260787,2789.7,2788.8,1.4766922]
[1645207160146,0.00821818,2789.7,2788.8,1.4766922]
[1645207160946,0.00260791,2789.4,2788.8,1.4766922]
[1645207161147,0.00260791,2789.4,2788.8,0.917]
[1645207161356,0.00260791,2789.4,2788.8,0.5]
[1645207161747,0.00260791,2789.4,2788.5,1.2047]
[1645207161748,0.1792,2789.3,2788.5,1.2047]
[1645207161951,0.00561031,2789.2,2788.4,3.8172]
[1645207162149,0.00821824,2789.2,2788.4,0.6459]
[1645207162351,0.89711,2789.1,2788.4,0.6459]
[1645207162549,0.1792,2789.0,2788.4,0.6459]
[1645207162750,0.00561031,2789.0,2788.4,0.6459]
[1645207162950,0.18741824,2789.2,2788.4,0.6459]
[1645207163250,0.00218013,2788.9,2788.4,0.6459]
[1645207164496,0.00218014,2788.8,2788.4,0.6459]
[1645207165697,0.00218014,2788.7,2788.6,0.8969031]
[1645207166695,0.00218014,2788.7,2788.6,1.41548798]
[1645207166895,0.00229255,2788.8,2788.6,1.41548798]
[1645207167100,0.00229255,2788.8,2788.7,0.8969208]
[1645207168046,0.00229254,2788.9,2788.7,0.8969208]
[1645207168447,0.00229254,2788.9,2788.7,1.3969208]
[1645207169047,0.00229254,2788.9,2788.7,0.8969208]
[1645207170451,0.00240288,2788.9,2788.7,0.8969208]
[1645207171690,0.00240288,2788.9,2788.6,0.51858488]
[1645207171891,0.00240288,2788.9,2788.2,2.34069403]
[1645207172794,0.00240291,2788.7,2788.2,2.34069403]
[1645207172991,0.00240291,2788.7,2788.6,0.51236942]
[1645207173593,0.00240291,2788.7,2788.2,2.34069403]
[1645207173996,0.00239398,2788.8,2788.2,2.34069403]
[1645207174796,0.00239398,2788.8,2788.2,0.54668673]
[1645207175047,0.89958398,2788.8,2788.2,0.54668673]
[1645207175250,0.002394,2788.6,2788.2,0.54668673]
[1645207176045,0.002394,2788.6,2788.3,0.61525303]
[1645207176448,0.00239401,2788.5,2788.3,0.61525303]
[1645207177346,0.00239401,2788.5,2788.1,0.1792]
[1645207177652,0.00239487,2788.5,2787.7,1.7943299]
[1645207177848,0.00239487,2788.5,2787.2,2.5665]
[1645207177849,1.00239487,2788.5,2787.2,2.5665]
[1645207178046,14.6092,2788.4,2787.2,2.5665]
[1645207178247,3.9792,2788.4,2787.2,2.5665]
[1645207178446,14.9092,2788.4,2787.5,0.51914889]
[1645207178649,1.79482,2788.2,2787.5,0.51914889]
[1645207178903,0.00239492,2788.1,2787.5,0.51914889]
[1645207179401,0.00239492,2788.1,2787.5,0.81914889]
[1645207179999,0.02505523,2788.8,2788.0,0.638916]
[1645207180805,0.02505523,2788.8,2787.2,0.717]
[1645207180806,0.02505523,2788.8,2787.2,0.417]
[1645207181001,17.22454,2788.9,2788.5,0.01777553]
[1645207181002,12.00641,2788.7,2788.5,0.01777553]
[1645207181309,14.02478,2788.6,2788.5,0.01777553]
[1645207181502,15.99875,2788.6,2788.5,0.01777553]
[1645207181701,5.06875,2788.6,2788.5,0.01777553]
[1645207182404,3.27387,2788.6,2788.5,0.01777553]
[1645207182646,1.4792,2788.6,2788.5,0.01777553]
[1645207182849,0.4792,2788.6,2788.5,0.01777553]
[1645207183048,1.4792,2788.6,2788.5,0.01777553]
[1645207184348,12.4092,2788.6,2788.5,0.01777553]
[1645207184548,12.4092,2788.6,2788.5,0.01009085]
[1645207184549,13.30651,2788.6,2788.5,0.01009085]
[1645207185648,15.10127054,2788.6,2788.5,0.01009085]
[1645207186049,1.79488,2788.4,2787.7,0.5965515]
[1645207186300,4.1410769,2788.4,2787.7,0.5965515]
[1645207186894,4.1410769,2788.4,2787.7,0.02099129]
[1645207187095,0.89743,2788.2,2787.7,0.02099129]
[1645207187296,0.90003808,2788.2,2787.7,0.02099129]
[1645207188101,0.00260808,2788.2,2787.7,0.02099129]
[1645207188498,0.00260805,2788.1,2787.7,0.02099129]
[1645207189298,0.00260805,2788.1,2787.8,0.55130291]
[1645207189699,0.00237201,2788.1,2787.7,0.02099129]
[1645207190173,0.00237201,2788.1,2787.9,0.00308113]
[1645207190473,1.34857891,2788.1,2787.9,0.00308113]
[1645207191071,0.00237201,2788.1,2787.9,0.64185138]
[1645207192074,0.00237209,2788.1,2787.9,0.64185138]
[1645207193375,0.00239768,2788.1,2787.9,0.64185138]
[1645207193993,0.00239768,2788.1,2787.9,0.94185138]
[1645207194894,0.00239768,2788.1,2787.9,0.64185138]
[1645207195594,0.00479536,2788.1,2788.0,0.02100964]
[1645207195798,0.00239768,2788.1,2788.0,0.02100964]
[1645207196795,0.00239421,2788.2,2788.0,0.02100964]